fUST/lending_fUST_20251105
["ID","MTS","AMOUNT","RATE_DAILY","PERIOD"]
[393216232,1762329493064,-10000.01,0.00016973,2]
[393216233,1762329493090,-10000.01,0.00016973,2]
[393216234,1762329493106,-10000.01,0.00016973,2]
[393216235,1762329493179,-10000.01,0.00016973,2]
[393216236,1762329493329,-10000.01,0.00016973,2]
[393216237,1762329493475,-10000.01,0.00016973,2]
[393216238,1762329493585,-10000.01,0.00016973,2]
[393216239,1762329493702,-10000.01,0.00016973,2]
[393216240,1762329493840,-10000.01,0.00016973,2]
[393216241,1762329495467,-10000.01,0.00016973,2]
[393216242,1762329498647,-10000.01,0.00016973,2]
[393216243,1762329498881,-10000.01,0.00016973,2]
[393216244,1762329499002,-10000.01,0.00016973,2]
[393216245,1762329499123,-10000.01,0.00016973,2]
[393216246,1762329499238,-10000.01,0.00016973,2]
[393216247,1762329499424,-10000.01,0.00016973,2]
[393216248,1762329499533,-10000.01,0.00016973,2]
[393216249,1762329504610,-10000.01,0.00016803,2]
[393216250,1762329504743,-10000.01,0.00016803,2]
[393216251,1762329504901,-10000.01,0.00016803,2]
[393216252,1762329505011,-3601.01500128,0.00016803,2]
[393216253,1762329505048,-2797.97999744,0.00016973,2]
[393216254,1762329505126,-10000.01,0.00016973,2]
[393216255,1762329505261,-10000.01,0.00016973,2]
[393216256,1762329505383,-10000.01,0.00016973,2]
[393216257,1762329505490,-10000.01,0.00016973,2]
[393216258,1762329520882,-262.40828812,0.00016803,2]
[393216265,1762329730416,-150.0,0.00015693,2]
[393216266,1762329730439,-70.1793355,0.00015852,2]
[393216267,1762329776058,-150.0,0.00015583,2]
[393216268,1762329776084,-138.52172154,0.0001574,2]
[393216269,1762329835312,-150.0,0.00015665,2]
[393216270,1762329835342,-22.70162266,0.00015823,2]
[393216271,1762329850340,-127.29837734,0.00015823,2]
[393216272,1762329850365,-133.96746234,0.00015838,2]
[393216273,1762329910342,-21.44734954,0.00015838,2]
[393216274,1762329910362,-232.44675934,0.00015866,2]
[393216275,1762329911850,-223.97224377,0.00015866,2]
[393216276,1762329914025,-374.8536954,0.00015866,2]
[393216277,1762329916606,-479.25259849,0.00015866,2]
[393216278,1762329920589,-248.57594024,0.00015866,2]
[393216279,1762329922247,-235.90704483,0.00015866,2]
[393216280,1762329924461,-176.53220651,0.00015866,2]
[393216281,1762329924762,4770.1793355,0.00015708,2]
[393216282,1762329932735,5229.8306645,0.00015708,2]
[393216283,1762329932759,5034.03740272,0.00015708,2]
[393216284,1762329934623,-152.7107901,0.00015866,2]
[393216285,1762329936728,-220.9375987,0.00015866,2]
[393216286,1762329938330,-169.43549047,0.00015866,2]
[393216287,1762329955573,-300.0,0.00015866,2]
[393216288,1762329955602,4965.97259728,0.00015708,2]
[393216289,1762329955624,4754.81159067,0.00015708,2]
[393216290,1762329957987,-266.51173075,0.00015866,2]
[393216291,1762329960804,-366.84853083,0.00015866,2]
[393216292,1762329963414,735.94722122,0.00015708,2]
[393216293,1762329965820,-175.99994656,0.00015866,2]
[393216294,1762329968278,-222.75633366,0.00015866,2]
[393216295,1762329969785,-324.0608468,0.00015866,2]
[393216296,1762329971909,-214.56281871,0.00015866,2]
[393216297,1762329974556,-204.58640749,0.00015866,2]
[393216298,1762329978773,4509.25118811,0.00015708,2]
[393216299,1762329978795,2938.91017969,0.00015708,2]
[393216300,1762329981579,-265.28032247,0.00015866,2]
[393216301,1762329984785,-191.08448377,0.00015866,2]
[393216302,1762329987125,516.84853083,0.00015708,2]
[393216303,1762329988695,-245.51880397,0.00015866,2]
[393216304,1762329992672,-300.0,0.00015866,2]
[393216305,1762329994280,-246.47728599,0.00015866,2]
[393216306,1762329997797,-345.38455942,0.00015866,2]
[393216307,1762329999383,-280.61190905,0.00015866,2]
[393216308,1762330015379,-195.20654203,0.00015866,2]
[393216309,1762330018180,-156.23987852,0.00015866,2]
[393216310,1762330021364,-234.31441551,0.00015866,2]
[393216311,1762330023980,-382.04304448,0.00015866,2]
[393216312,1762330026204,-318.00980162,0.00015866,2]
[393216313,1762330031083,-262.42991811,0.00015866,2]
[393216314,1762330033119,-169.56028027,0.00015866,2]
[393216315,1762330038062,-229.30808311,0.00015866,2]
[393216316,1762330038422,644.64430984,0.00015708,2]
[393216317,1762330039811,-245.27588994,0.00015866,2]
[393216318,1762330060633,-320.99515381,0.00015866,2]
[393216319,1762330061162,405.21798759,0.00015708,2]
[393216320,1762330062285,-229.12950711,0.00015866,2]
[393216321,1762330065031,-157.36738231,0.00015866,2]
[393216322,1762330066976,-233.99050213,0.00015866,2]
[393216323,1762330069398,320.99515381,0.00015708,2]
[393216324,1762330070709,-317.31265916,0.00015866,2]
[393216325,1762330149313,-300.0,0.00015865,2]
[393216326,1762330149332,-2319.91715037,0.00015866,2]
[393216327,1762330149351,-538.62366551,0.00015866,2]
[393216328,1762330149371,-771.5103816,0.00015866,2]
[393216329,1762330149391,-163.6665123,0.000159,2]
[393216330,1762330149410,-29868.18213732,0.00015993,2]
[393216332,1762330178917,595.77999996,0.00037572,120]
[393216333,1762330204242,459.69713893,0.0002,7]
[393216352,1762330232620,-280.10940782,0.00015993,2]
[393216353,1762330232631,-2115.75086176,0.00015993,2]
[393216354,1762330232640,-164.49158011,0.00016277,2]
[393216355,1762330232649,-202.0,0.00016561,2]
[393216356,1762330232659,-500.0,0.00016972,2]
[393216357,1762330232668,-300.0,0.00016972,2]
[393216358,1762330232678,-500.0,0.00016973,2]
[393216359,1762330232688,-500.0,0.00016973,2]
[393216360,1762330232698,-500.0,0.00016973,2]
[393216361,1762330232708,-8260.41622258,0.00016973,2]
[393216382,1762330238431,-412.0,0.00016973,2]
[393216388,1762330238487,-14809.01295629,0.00016973,2]
[393216450,1762330241304,-3e-08,0.00016973,2]
[393216451,1762330241315,-23400.0,0.00016973,2]
[393216485,1762330243710,-14971.22612389,0.00016973,2]
[393216486,1762330243722,-15068.49308427,0.00016973,2]
[393216487,1762330243734,-13728.58580172,0.00016973,2]
[393216488,1762330243777,-565.99163167,0.00016973,2]
[393216536,1762330644457,-163.37673101,0.00015859,2]
[393216537,1762330644488,-174.58365721,0.00016256,2]
[393216538,1762330644517,-1200.0,0.00016654,2]
[393216539,1762330644546,-300.0,0.00016654,2]
[393216540,1762330644658,-6260.61532494,0.00016655,2]
[393216541,1762330644697,-3836.50855686,0.00016655,2]
[393216542,1762330644728,-771.2857573,0.00016655,2]
[393216543,1762330644758,-284.42137168,0.000167,2]
[393216544,1762330644807,-215.57862832,0.000167,2]
[393216545,1762330644843,-150.0,0.00016742,2]
[393216546,1762330644872,-500.0,0.00016972,2]
[393216547,1762330644901,-500.0,0.00016972,2]
[393216548,1762330644929,-500.0,0.00016973,2]
[393216549,1762330644958,-500.0,0.00016973,2]
[393216550,1762330645098,-500.0,0.00016973,2]
[393216551,1762330645236,-4700.01,0.00016973,2]
[393216552,1762330645266,-10000.01,0.00016973,2]
[393216553,1762330645283,-10000.01,0.00016973,2]
[393216554,1762330645307,-10000.01,0.00016973,2]
[393216555,1762330645339,-10000.01,0.00016973,2]
[393216556,1762330645715,-10000.01,0.00016973,2]
[393216557,1762330645778,-10000.01,0.00016973,2]
[393216558,1762330645914,-10000.01,0.00016973,2]
[393216559,1762330647364,-10000.01,0.00016973,2]
[393216560,1762330650520,-10000.01,0.00016973,2]
[393216561,1762330650749,-10000.01,0.00016973,2]
[393216562,1762330650855,-10000.01,0.00016973,2]
[393216563,1762330650972,-10000.01,0.00016973,2]
[393216564,1762330656482,-10000.01,0.00016973,2]
[393216565,1762330656622,-10000.01,0.00016973,2]
[393216566,1762330656764,-10000.01,0.00016973,2]
[393216567,1762330656876,-10000.01,0.00016973,2]
[393216568,1762330657018,-10000.01,0.00016973,2]
[393216578,1762330870457,-224.00390911,0.0001584,2]
[393216587,1762331065556,-188.62213729,0.00015682,2]
[393216588,1762331067186,-260.07470142,0.00015682,2]
[393216589,1762331071572,-280.84958827,0.00015682,2]
[393216616,1762331237482,336.145494,0.00037566,60]
[393216628,1762331290468,-179.70897583,0.00015371,2]
[393216629,1762331290493,-3.33194213,0.00015526,2]
[393216630,1762331293009,-164.28104388,0.00015526,2]
[393216641,1762331350081,-12.09598982,0.00015526,2]
[393216642,1762331350101,-179.70897583,0.00015683,2]
[393216643,1762331350120,-171.733599,0.00015685,2]
[393216644,1762331350141,-132.87807232,0.000159,2]
[393216645,1762331357111,-98.5984224,0.000159,2]
[393216646,1762331357130,-2879.42596401,0.00016,2]
[393216649,1762331373079,-2337.57403599,0.0001584,2]
[393216650,1762331373098,-687.18339436,0.00016,2]
[393216721,1762331432727,-200.87901487,0.0001584,2]
[393216723,1762331432737,-1020.42246399,0.00016,2]
[393216765,1762331438702,-599.9784378,0.00016,2]
[393216766,1762331438713,-29.98973984,0.00016,2]
[393216767,1762331438723,-159.383,0.00016535,2]
[393216769,1762331438732,-182.63667914,0.00016535,2]
[393216770,1762331438741,-195.03259949,0.00016872,2]
[393216771,1762331438750,-500.0,0.00016872,2]
[393216772,1762331438759,-300.0,0.00016872,2]
[393216773,1762331438769,-1200.0,0.00016872,2]
[393216774,1762331438778,-500.0,0.00016873,2]
[393216775,1762331438787,-500.0,0.00016873,2]
[393216776,1762331438797,-500.0,0.00016873,2]
[393216777,1762331438806,-198286.85945653,0.00016873,2]
[393216822,1762331440913,-7725.0,0.00016873,2]
[393216931,1762331443882,-1467.24279764,0.00016873,2]
[393216945,1762331447210,-6600.0,0.00016873,2]
[393216946,1762331457390,228.86637465,0.00021433,4]
[393216947,1762331508524,5000.0,0.000222,9]
[393216948,1762331531269,5000.0,0.000222,9]
[393216949,1762331535072,156.0,1.03e-06,2]
[393216950,1762331536203,156.0,1.03e-06,2]
[393216951,1762331537525,156.0,1.03e-06,2]
[393216952,1762331553556,5000.0,0.000222,9]
[393216953,1762331574117,570.90147246,0.00021255,4]
[393216954,1762331577011,1429.7298241,0.000222,9]
[393217084,1762331656264,696.6439202,0.000222,9]
[393217117,1762331714662,180.0,0.00037555,30]
[393217118,1762331715313,180.0,0.00037555,30]
[393217119,1762331715929,180.0,0.00037555,30]
[393217120,1762331716553,180.0,0.00037555,30]
[393217122,1762331717201,180.0,0.00037555,30]
[393217123,1762331717817,180.0,0.00037555,30]
[393217124,1762331718440,180.0,0.00037555,30]
[393217125,1762331719104,180.0,0.00037555,30]
[393217127,1762331719730,180.0,0.00037555,30]
[393217128,1762331720383,180.0,0.00037555,30]
[393217129,1762331720994,180.0,0.00037555,30]
[393217132,1762331721617,180.0,0.00037555,30]
[393217133,1762331722267,180.0,0.00037555,30]
[393217134,1762331722912,180.0,0.00037555,30]
[393217135,1762331723659,180.0,0.00037555,30]
[393217136,1762331724263,180.0,0.00037555,30]
[393217139,1762331725345,-195.66,0.00015589,2]
[393217141,1762331727543,-180.91238645,0.00015589,2]
[393217143,1762331729930,-479.91692964,0.00015589,2]
[393217144,1762331731939,-391.67557583,0.00015589,2]
[393217172,1762331929138,306.0,0.00032877,120]
[393217182,1762332037322,500.0,0.00037559,60]
[393217183,1762332037561,500.0,0.00037559,60]
[393217184,1762332037924,500.0,0.00037559,60]
[393217185,1762332038019,500.0,0.00037559,60]
[393217186,1762332038266,500.0,0.00037559,60]
[393217187,1762332038502,500.0,0.00037559,60]
[393217188,1762332038758,500.0,0.00037559,60]
[393217189,1762332039074,500.0,0.00037559,60]
[393217190,1762332039305,500.0,0.00037559,60]
[393217191,1762332039556,500.0,0.00037559,60]
[393217192,1762332039835,500.0,0.00037559,60]
[393217193,1762332040063,500.0,0.00037559,60]
[393217194,1762332040309,435.0,0.00037559,60]
[393217221,1762332430434,-163.10206508,0.00015589,2]
[393217222,1762332430456,-186.51937999,0.00015634,2]
[393217223,1762332556813,786.60328395,0.00021416,7]
[393217240,1762332636501,-501.54290481,0.00015633,2]
[393217241,1762332636511,-0.82442308,0.00015634,2]
[393217242,1762332636520,-159.384,0.00016437,2]
[393217243,1762332636530,-1802.66741776,0.00016497,2]
[393217244,1762332636539,-529.01909493,0.000167,2]
[393217245,1762332636548,-57550.81301737,0.0001677,2]
[393217246,1762332636559,-2119.9520842,0.0001677,2]
[393217247,1762332636571,-517.76991107,0.0001677,2]
[393217266,1762332637713,-7689.19648967,0.0001677,2]
[393217267,1762332637725,-281.04,0.0001677,2]
[393217283,1762332640054,-3e-08,0.0001677,2]
[393217480,1762332642924,-3210.28752487,0.0001677,2]
[393217481,1762332642954,-61.72974348,0.0001677,2]
[393217482,1762332643030,-2123.04731066,0.0001677,2]
[393217504,1762332746612,150.0,0.00021241,30]
[393217505,1762332772757,456.85816692,0.00021195,4]
[393217506,1762332776116,588.0,0.00032877,120]
[393217508,1762332827413,150.0,0.00020708,30]
[393217509,1762332901505,300.0,0.000215,4]
[393217510,1762332936300,150.0,0.00032876,120]
[393217512,1762332979888,150.0,0.00020793,30]
[393217514,1762333059146,150.0,0.00020697,30]
[393217515,1762333106518,-296.90163129,0.00015772,2]
[393217517,1762333108677,-235.73576298,0.00015772,2]
[393217518,1762333110125,-3191.80136443,0.00015772,2]
[393217519,1762333110154,-159.384,0.00016437,2]
[393217520,1762333110182,-183.596927,0.00016521,2]
[393217521,1762333110208,-1127.77799937,0.00016571,2]
[393217522,1762333110270,-674.8894184,0.00016571,2]
[393217523,1762333110501,-10000.01,0.0001677,2]
[393217524,1762333110612,-10000.01,0.0001677,2]
[393217525,1762333110712,-10000.01,0.0001677,2]
[393217526,1762333110831,-10000.01,0.0001677,2]
[393217527,1762333110971,-10000.01,0.0001677,2]
[393217528,1762333111089,-10000.01,0.0001677,2]
[393217529,1762333111211,-10000.01,0.0001677,2]
[393217530,1762333111326,-10000.01,0.0001677,2]
[393217531,1762333111476,-10000.01,0.0001677,2]
[393217532,1762333116088,-10000.01,0.0001677,2]
[393217533,1762333116217,-10000.01,0.0001677,2]
[393217534,1762333116333,-10000.01,0.0001677,2]
[393217535,1762333116456,-10000.01,0.0001677,2]
[393217536,1762333116564,-10000.01,0.0001677,2]
[393217537,1762333116686,-10000.01,0.0001677,2]
[393217538,1762333116802,-10000.01,0.0001677,2]
[393217539,1762333116912,-10000.01,0.0001677,2]
[393217540,1762333117038,-10000.01,0.0001677,2]
[393217541,1762333117230,-10000.01,0.0001677,2]
[393217542,1762333122118,-10000.01,0.0001677,2]
[393217543,1762333122243,-10000.01,0.0001677,2]
[393217544,1762333122370,-10000.01,0.0001677,2]
[393217545,1762333122528,-10000.01,0.0001677,2]
[393217546,1762333122754,-10000.01,0.0001677,2]
[393217547,1762333122792,-10000.01,0.0001677,2]
[393217548,1762333122928,-10000.01,0.0001677,2]
[393217549,1762333123128,-10000.01,0.0001677,2]
[393217550,1762333123301,-10000.01,0.0001677,2]
[393217551,1762333123433,-10000.01,0.0001677,2]
[393217552,1762333134240,-10000.01,0.0001677,2]
[393217553,1762333134370,-10000.01,0.0001677,2]
[393217554,1762333134485,-10000.01,0.0001677,2]
[393217555,1762333134639,-10000.01,0.0001677,2]
[393217556,1762333134741,-10000.01,0.0001677,2]
[393217557,1762333134856,-10000.01,0.0001677,2]
[393217558,1762333137215,-10000.01,0.0001677,2]
[393217559,1762333137346,-10000.01,0.0001677,2]
[393217560,1762333137465,-10000.01,0.0001677,2]
[393217561,1762333137673,-10000.01,0.0001677,2]
[393217562,1762333137712,-10000.01,0.0001677,2]
[393217563,1762333137821,-10000.01,0.0001677,2]
[393217564,1762333270314,-262.40828812,0.00015772,2]
[393217565,1762333272478,-461.00419208,0.00015772,2]
[393217566,1762333276113,-184.41014922,0.00015772,2]
[393217595,1762333672796,365.59615757,0.000208,4]
[393217596,1762333675382,-92.17737058,0.00015772,2]
[393217597,1762333675404,-300.0,0.000158,2]
[393217599,1762333675426,-229.53902949,0.000158,2]
[393217600,1762333690376,-227.20202614,0.00015642,2]
[393217601,1762333759117,-294.07811581,0.00015318,2]
[393217602,1762333759138,-522.80553922,0.00015318,2]
[393217603,1762333759163,-459.48986736,0.00015318,2]
[393217604,1762333761083,-356.57690402,0.00015318,2]
[393217605,1762333761102,-143.25894437,0.00015642,2]
[393217606,1762333761122,-180.93683848,0.00015721,2]
[393217607,1762333761142,-70.46097051,0.000158,2]
[393217608,1762333761162,-69.01435315,0.000158,2]
[393217609,1762333765444,-403.62763755,0.00015642,2]
[393217610,1762333767096,-127.3580093,0.00015642,2]
[393217611,1762333767116,-230.98564685,0.000158,2]
[393217612,1762333767134,-138.07298082,0.000158,2]
[393217615,1762333796440,-300.0,0.00015486,2]
[393217616,1762333796462,-207.40908845,0.00015642,2]
[393217623,1762333822356,824.044781,0.00013699,2]
[393217656,1762333831890,-92.59091155,0.00015642,2]
[393217658,1762333831900,-278.71284974,0.00016338,2]
[393217660,1762333831909,-278.71284974,0.00016503,2]
[393217662,1762333831918,-462.89170809,0.00016573,2]
[393217664,1762333831927,-203.0,0.00016603,2]
[393217666,1762333831937,-300.0,0.00016671,2]
[393217668,1762333831946,-998.0,0.00016671,2]
[393217670,1762333831956,-500.0,0.00016672,2]
[393217672,1762333831965,-3359.40234156,0.00016672,2]
[393217674,1762333831974,-220.83481964,0.00016672,2]
[393217675,1762333831983,-500.0,0.00016672,2]
[393217677,1762333831992,-500.0,0.00016672,2]
[393217679,1762333832001,-500.0,0.00016672,2]
[393217681,1762333832010,-500.0,0.00016672,2]
[393217683,1762333832019,-417.17115496,0.00016672,2]
[393217685,1762333832028,-500.0,0.00016672,2]
[393217687,1762333832037,-500.0,0.00016672,2]
[393217689,1762333832046,-500.0,0.00016672,2]
[393217691,1762333832055,-627.61751021,0.00016672,2]
[393217692,1762333832063,-500.0,0.00016672,2]
[393217694,1762333832072,-500.0,0.00016672,2]
[393217695,1762333832082,-500.0,0.00016672,2]
[393217696,1762333832091,-500.0,0.00016672,2]
[393217697,1762333832100,-500.0,0.00016672,2]
[393217698,1762333832109,-500.0,0.00016672,2]
[393217700,1762333832118,-500.0,0.00016672,2]
[393217702,1762333832127,-500.0,0.00016672,2]
[393217704,1762333832136,-500.0,0.00016672,2]
[393217706,1762333832145,-500.0,0.00016672,2]
[393217708,1762333832154,-500.0,0.00016672,2]
[393217710,1762333832163,-500.0,0.00016672,2]
[393217712,1762333832172,-500.0,0.00016672,2]
[393217714,1762333832181,-500.0,0.00016672,2]
[393217716,1762333832191,-500.0,0.00016672,2]
[393217718,1762333832201,-500.0,0.00016672,2]
[393217720,1762333832210,-500.0,0.00016672,2]
[393217722,1762333832219,-500.0,0.00016672,2]
[393217724,1762333832228,-500.0,0.00016672,2]
[393217726,1762333832237,-500.0,0.00016672,2]
[393217728,1762333832246,-500.0,0.00016672,2]
[393217730,1762333832255,-500.0,0.00016672,2]
[393217731,1762333832264,-500.0,0.00016672,2]
[393217733,1762333832273,-500.0,0.00016672,2]
[393217735,1762333832282,-500.0,0.00016672,2]
[393217737,1762333832291,-500.0,0.00016672,2]
[393217739,1762333832300,-500.0,0.00016672,2]
[393217741,1762333832310,-510.73043091,0.00016672,2]
[393217743,1762333832319,-500.0,0.00016672,2]
[393217745,1762333832328,-500.0,0.00016672,2]
[393217747,1762333832337,-167.10832643,0.00016672,2]
[393217749,1762333832346,-417.99981792,0.00016673,2]
[393217751,1762333832355,-501.76156818,0.00016673,2]
[393217753,1762333832365,-453.21965955,0.00016673,2]
[393217755,1762333832374,-500.0,0.00016673,2]
[393217756,1762333832383,-500.51404501,0.00016673,2]
[393217758,1762333832393,-501.20072089,0.00016673,2]
[393217761,1762333832403,-501.60670923,0.00016673,2]
[393217762,1762333832412,-463.19699189,0.00016673,2]
[393217764,1762333832422,-500.0,0.00016673,2]
[393217766,1762333832431,-500.0,0.00016673,2]
[393217768,1762333832440,-500.90044918,0.00016673,2]
[393217770,1762333832449,-632.42604513,0.00016673,2]
[393217772,1762333832459,-500.0,0.00016673,2]
[393217774,1762333832468,-112980.9582195,0.00016673,2]
[393217776,1762333832479,-400032.75463213,0.00016673,2]
[393217881,1762333837918,-300.0,0.000156,2]
[393217882,1762333837930,-29020.23508247,0.00016673,2]
[393217919,1762333840110,-3e-08,0.00016672,2]
[393218015,1762333843288,-300.0,0.00015444,2]
[393218016,1762333843300,-153.35505434,0.00016672,2]
[393218017,1762333843311,-158.56288235,0.00016672,2]
[393218018,1762333843322,-1493.03732431,0.00016673,2]
[393218024,1762333871053,500.0,0.00037552,60]
[393218025,1762333871298,500.0,0.00037552,60]
[393218026,1762333871558,500.0,0.00037552,60]
[393218027,1762333871789,500.0,0.00037552,60]
[393218028,1762333872022,500.0,0.00037552,60]
[393218029,1762333872261,381.00156591,0.00037552,60]
[393218051,1762334273811,246.23323981,0.00015884,2]
[393218052,1762334284193,5623.534761,0.00037524,120]
[393218053,1762334364372,171.01335875,0.00015884,2]
[393218054,1762334366745,307.82404576,0.00015884,2]
[393218055,1762334368890,547.24274801,0.00015884,2]
[393218056,1762334371137,854.21172697,0.00015884,2]
[393218059,1762334421539,5000.0,0.00016419,2]
[393218060,1762334429634,3119.71812051,0.00016419,2]
[393218065,1762334434839,-1880.28187949,0.00016419,2]
[393218070,1762334573102,292.56465159,0.00021145,4]
[393218071,1762334628705,5000.0,0.000222,9]
[393218072,1762334636944,5000.0,0.000222,9]
[393218073,1762334645481,5000.0,0.000222,9]
[393218074,1762334653279,5000.0,0.000222,9]
[393218075,1762334661789,5000.0,0.000222,9]
[393218076,1762334669663,5000.0,0.000222,9]
[393218077,1762334677801,5000.0,0.000222,9]
[393218078,1762334685509,5000.0,0.000222,9]
[393218079,1762334693646,5000.0,0.000222,9]
[393218080,1762334702037,5000.0,0.000222,9]
[393218081,1762334710490,5000.0,0.000222,9]
[393218082,1762334718814,5000.0,0.000222,9]
[393218083,1762334727005,5000.0,0.000222,9]
[393218084,1762334734878,5000.0,0.000222,9]
[393218085,1762334742957,2185.23141805,0.000222,9]
[393218086,1762334751087,5000.0,0.000222,9]
[393218087,1762334759140,5000.0,0.000222,9]
[393218089,1762334774335,5000.0,0.000222,9]
[393218093,1762334783216,5000.0,0.000222,9]
[393218094,1762334799036,5000.0,0.000222,9]
[393218095,1762334806808,5000.0,0.000222,9]
[393218127,1762334822226,5000.0,0.000222,9]
[393218132,1762334830148,4421.25354619,0.000222,9]
[393218133,1762334847029,5000.0,0.000222,9]
[393218134,1762334855430,213.10545171,0.000222,9]
[393218139,1762334871379,5000.0,0.000222,9]
[393218140,1762334875406,-153.62930103,0.00015135,2]
[393218141,1762334880296,-89.28600294,0.00015135,2]
[393218142,1762334880319,-272.40424518,0.00015135,2]
[393218143,1762334882501,-164.84330196,0.00015135,2]
[393218144,1762334882523,-129.14601227,0.00015135,2]
[393218145,1762334884894,-243.75559371,0.00015135,2]
[393218146,1762334887051,-294.79700951,0.00015135,2]
[393218147,1762334889062,-109.63035721,0.00015135,2]
[393218148,1762334889088,-161.35116222,0.00015135,2]
[393218149,1762334893909,5000.0,0.000222,9]
[393218150,1762334905937,-338.22907611,0.00015135,2]
[393218151,1762334908448,-216.07419342,0.00015135,2]
[393218152,1762334912263,-322.53495666,0.00015135,2]
[393218153,1762334916434,5000.0,0.000222,9]
[393218161,1762334939746,4079.7750961,0.000222,9]
[393218162,1762334956087,-154.59363127,0.00015135,2]
[393218163,1762334965090,-20.57892364,0.00015135,2]
[393218164,1762334965123,-416.03982298,0.00015135,2]
[393218165,1762334965146,-748.87168137,0.00015135,2]
[393218166,1762334965166,-1331.32743354,0.00015135,2]
[393218167,1762334965188,-2080.1991149,0.00015135,2]
[393218168,1762334965208,-407.13868227,0.00015307,2]
[393218169,1762334965425,-191.87235241,0.00015307,2]
[393218170,1762334996513,-106.62244332,0.00015307,2]
[393218171,1762334996535,-132.47905222,0.00015612,2]
[393218459,1762335038044,-300.0,0.000153,2]
[393218460,1762335038054,-44.83904949,0.00015612,2]
[393218461,1762335038063,-322.67345446,0.00015917,2]
[393218462,1762335038073,-573.64169682,0.00015917,2]
[393218463,1762335038083,-895.41883613,0.00015917,2]
[393218464,1762335038093,-28.85166054,0.00016,2]
[393218465,1762335038104,-471.14833946,0.00016,2]
[393218466,1762335038114,-1163.0934198,0.00016,2]
[393218469,1762335040223,-1716.33254421,0.00016,2]
[393218471,1762335040233,-499.25546202,0.00016571,2]
[393218488,1762335040404,-3e-08,0.00016571,2]
[393218507,1762335040566,-258.22,0.00016571,2]
[393218509,1762335040578,-302.38100002,0.00016571,2]
[393218521,1762335043349,-26.04843923,0.00016571,2]
[393218522,1762335043361,-216.51706032,0.00016571,2]
[393218523,1762335043371,-300.0,0.00016571,2]
[393218524,1762335043380,-209.19554026,0.00016572,2]
[393218525,1762335043389,-500.0,0.00016572,2]
[393218526,1762335043398,-180.84639002,0.00016572,2]
[393218527,1762335043408,-500.0,0.00016572,2]
[393218528,1762335043417,-202.75522428,0.00016572,2]
[393218530,1762335070392,-300.0,0.000153,2]
[393218531,1762335070421,-82.36596771,0.000153,2]
[393218532,1762335071965,-217.63403229,0.000153,2]
[393218533,1762335071990,-82.36596771,0.000153,2]
[393218534,1762335129153,151.0,0.00019786,7]
[393218535,1762335161473,500.0,0.00037528,60]
[393218536,1762335161633,500.0,0.00037528,60]
[393218537,1762335161858,500.0,0.00037528,60]
[393218538,1762335162120,500.0,0.00037528,60]
[393218539,1762335162376,500.0,0.00037528,60]
[393218540,1762335162611,500.0,0.00037528,60]
[393218541,1762335162885,500.0,0.00037528,60]
[393218542,1762335163136,500.0,0.00037528,60]
[393218543,1762335163382,500.0,0.00037528,60]
[393218544,1762335163608,626.63519087,0.00037528,60]
[393218545,1762335238159,151.0,0.000215,4]
[393218546,1762335297701,1161.48,0.000144,2]
[393218547,1762335334567,300.0,0.000144,2]
[393218549,1762335393499,185.20153453,0.000144,2]
[393218550,1762335451557,150.0,0.00021475,30]
[393218551,1762335531178,150.0,0.00021487,30]